[Event "European School-ch 2019"]
[Site "Mamaia"]
[Date "2019.06.07"]
[Round "8.23"]
[White "Nemsadze, Daviti"]
[Black "Akkas, Doruk"]
[Result "1-0"]
[ECO "A25"]
[WhiteElo "1803"]
[BlackElo "1565"]
[Annotator "NA RC"]
[PlyCount "159"]
[EventDate "2019.05.31"]
[EventType "swiss"]
[EventCountry "ROU"]
[SourceTitle "playchess.com"]
[Source "ChessBase"]
[SourceQuality "1"]
[TimeControl "40/5400+30:1800+30"]

1. c4 {[%emt 0:00:00]} e5 {[%emt 0:00:00]} 2. Nc3 {[%emt 0:00:00]} Nc6 {[%emt 0:00:00]} 3. g3 {[%emt 0:00:00]} d6 {[%emt 0:00:00]} 4. Bg2 {[%emt 0:00:00]} Be6 {[%emt 0:00:00]} 5. Nd5 {[%emt 0:00:10]} Qd7 {[%emt 0:00:44]} 6. Rb1 {[%emt 0:01:37]} g6 {[%emt 0:02:29]} 7. b4 {[%emt 0:05:13]} Bg7 {[%emt 0:02:18]} 8. b5 {[%emt 0:00:29]} Nd8 {[%emt 0:00:33]} 9. d3 {[%emt 0:00:16]} c6 {[%emt 0:01:44] A25: English Opening vs King's Indian with ...Nc6 but without early d3} 10. bxc6 {[%emt 0:01:15]} bxc6 {[%emt 0:00:15]} 11. Nb4 {[%emt 0:00:11]} (11. Nc3 f5 12. Qc2 Ne7 13. Nf3 h6 14. O-O O-O 15. Ba3 g5 16. Rb3 g4 17. Nd2 h5 18. Rfb1 h4 19. Qb2 hxg3 20. hxg3 f4 21. Nde4 {½-½ (21) Shetty,A (2366)-Macieja,B (2554) Chicago 2016}) 11... Ne7 {[%emt 0:01:58]} 12. Bd2 $146 {[%emt 0:08:47]} ({Predecessor:} 12. Ba3 O-O 13. Nf3 e4 14. Ng5 exd3 15. Qxd3 Bf5 16. e4 Bg4 17. h3 {1-0 (31) Lipka,J (2373)-Kovacik,E (2172) Trencianske Teplice 2005}) 12... O-O {[%emt 0:02:13]} 13. h4 {[%emt 0:02:09]} Nb7 {[%emt 0:11:12]} 14. Nf3 {[%emt 0:07:10]} Nc5 {[%emt 0:02:16]} 15. Ng5 {[%emt 0:00:26]} Bf5 {[%emt 0:02:33]} 16. Ne4 {[%emt 0:21:57]} Nxe4 {[%emt 0:04:07]} 17. dxe4 {[%emt 0:01:24]} Be6 {[%emt 0:01:08]} 18. Qc2 {[%emt 0:00:28]} Rab8 {[%emt 0:08:00]} 19. O-O {[%emt 0:01:59]} Bh3 {[%emt 0:03:06]} 20. Rfd1 {[%emt 0:09:02]} Bxg2 {[%emt 0:02:52]} 21. Kxg2 {[%emt 0:00:26]} d5 {[%emt 0:13:35]} 22. cxd5 {[%emt 0:05:47]} cxd5 {[%emt 0:03:28]} 23. Qd3 {[%emt 0:14:24]} d4 {[%emt 0:05:11]} 24. Na6 {[%emt 0:00:27]} Rxb1 {[%emt 0:02:29]} 25. Rxb1 {[%emt 0:00:24]} Rc8 {[%emt 0:01:06]} 26. Qa3 {[%emt 0:06:33]} Bf8 {[%emt 0:02:50]} 27. Qd3 {[%emt 0:07:58]} Qa4 {[%emt 0:03:05]} 28. Rb2 {[%emt 0:00:39]} Kg7 {[%emt 0:08:13]} 29. Nb4 {[%emt 0:00:58]} a5 {[%emt 0:03:25]} 30. Nc2 {[%emt 0:02:10]} Rc5 {[%emt 0:02:21]} 31. Ne1 {[%emt 0:00:23]} Nc6 {[%emt 0:00:54]} 32. Qb1 {[%emt 0:00:18]} h6 {[%emt 0:02:30]} 33. Rb3 {[%emt 0:00:11]} Qc4 {[%emt 0:00:38]} 34. Nd3 {[%emt 0:00:03]} Qc2 {[%emt 0:07:07]} 35. Nxc5 {[%emt 0:00:10]} Qxd2 {[%emt 0:00:12]} 36. Rb2 {[%emt 0:00:04]} Qc3 {[%emt 0:00:14]} 37. Nd3 {[%emt 0:00:12]} Nb4 {[%emt 0:01:44]} 38. Nxb4 {[%emt 0:00:07]} Bxb4 {[%emt 0:01:27]} 39. Rc2 {[%emt 0:00:33]} Qe1 {[%emt 0:00:33]} 40. Qxe1 {[%emt 0:00:00]} Bxe1 {[%emt 0:00:00]} 41. Rc5 {[%emt 0:00:10]} Kf6 {[%emt 0:00:57]} 42. f4 {[%emt 0:07:30]} exf4 {[%emt 0:00:59]} 43. gxf4 {[%emt 0:00:06]} Bd2 {[%emt 0:02:49]} 44. Kf3 {[%emt 0:00:10]} Kg7 {[%emt 0:02:28]} 45. h5 {[%emt 0:02:01]} gxh5 {[%emt 0:02:20]} 46. Rxh5 {[%emt 0:00:21]} Kg6 {[%emt 0:00:27]} 47. Rd5 {[%emt 0:00:14]} Bc3 {[%emt 0:00:45]} 48. Kg4 {[%emt 0:00:29]} Kg7 {[%emt 0:00:53]} 49. a4 {[%emt 0:00:37]} Kg6 {[%emt 0:00:29]} 50. Rc5 {[%emt 0:00:18]} Bd2 {[%emt 0:01:16]} 51. Rd5 $2 {[%emt 0:01:36]} (51. f5+ $18 Kf6 52. e5+ Ke7 53. Rd5) 51... Bc3 {[%emt 0:00:25]} 52. f5+ {[%emt 0:00:22]} Kf6 {[%emt 0:01:31]} 53. Kh5 {[%emt 0:00:47]} Kg7 {[%emt 0:02:25]} 54. Rd6 {[%emt 0:00:13]} Bb2 {[%emt 0:01:00]} 55. Rxh6 {[%emt 0:01:38]} (55. f6+ $142 Kh7 56. Rd7 d3 57. exd3 Bxf6 58. Rxf7+ {[%mdl 64] Double Attack} Bg7 59. e5 Kg8 60. e6) 55... f6 {[%emt 0:00:06]} 56. Rg6+ {[%emt 0:00:07]} Kf7 {[%emt 0:00:06]} 57. Rg1 {[%emt 0:00:04]} Ke7 {[%emt 0:01:10]} 58. Rb1 {[%emt 0:00:04]} Bc3 {[%emt 0:01:51]} 59. Rb6 {[%emt 0:00:06]} Kd7 {[%emt 0:01:40]} 60. Kg6 {[%emt 0:00:08]} Kd8 {[%emt 0:00:54]} 61. Rb7 {[%emt 0:00:28]} Ke8 {[%emt 0:01:07]} 62. Kxf6 {[%emt 0:00:43]} d3+ {[%emt 0:00:16]} 63. Ke6 {[%emt 0:00:03]} Kd8 {[%emt 0:00:05]} 64. exd3 {[%emt 0:00:03]} Kc8 {[%emt 0:00:59]} 65. Rh7 {[%emt 0:00:11]} Kd8 {[%emt 0:00:51]} 66. f6 {[%emt 0:00:06]} Bb4 {[%emt 0:00:43]} 67. Rd7+ {[%emt 0:00:14]} Kc8 {[%emt 0:00:10]} 68. f7 {[%emt 0:00:06]} Ba3 {[%emt 0:00:45]} 69. d4 {[%emt 0:00:16]} Bb4 {[%emt 0:00:25]} 70. d5 {[%emt 0:00:10]} Bf8 {[%emt 0:00:08]} 71. d6 {[%emt 0:00:03]} Bg7 {[%emt 0:00:15]} 72. Re7 {[%emt 0:00:12]} Bh6 {[%emt 0:00:40]} 73. Kd5 {[%emt 0:00:09]} Bg7 {[%emt 0:00:42]} 74. Kc6 {[%emt 0:00:03]} Kb8 {[%emt 0:00:19]} 75. Rb7+ {[%emt 0:00:06]} Kc8 {[%emt 0:00:44]} 76. e5 {[%emt 0:00:05]} Bh6 {[%emt 0:00:39]} 77. e6 {[%emt 0:00:08]} Bf8 {[%emt 0:00:11]} 78. Rb1 {[%emt 0:00:20]} Be7 {[%emt 0:00:59]} 79. d7+ {[%emt 0:00:19]} Kd8 {[%emt 0:00:11]} 80. Rb8# {[%emt 0:00:01]} 1-0